[Event "Titled Tuesday Blitz May 2 Late 2023"]
[White "Principe, Gerson"]
[Black "Stearman, Josiah"]
[WhiteFideId "3804550"]
[BlackFideId "2062496"]
[WhiteElo "2229"]
[BlackElo "2393"]
[Result "0-1"]
[Round "05"]
[TimeControl "180+2"]
[Date "2023.05.02"]
[WhiteClock "0:00:06"]
[BlackClock "0:00:16"]

1. d4 {[%clk 0:02:54]}  d5 {[%clk 0:02:57]} 2. Nf3 {[%clk 0:02:52]}  Nf6 {[%clk 0:02:56]} 3. c4 {[%clk 0:02:49]}  c6 {[%clk 0:02:54]} 4. e3 {[%clk 0:02:48]}  Bf5 {[%clk 0:02:51]} 5. Bd3 {[%clk 0:02:46]}  Bxd3 {[%clk 0:02:48]} 6. Qxd3 {[%clk 0:02:46]}  e6 {[%clk 0:02:49]} 7. O-O {[%clk 0:02:46]}  Bd6 {[%clk 0:02:48]} 8. Nc3 {[%clk 0:02:46]}  O-O {[%clk 0:02:48]} 9. e4 {[%clk 0:02:45]}  dxe4 {[%clk 0:02:48]} 10. Nxe4 {[%clk 0:02:46]}  Nxe4 {[%clk 0:02:49]} 11. Qxe4 {[%clk 0:02:46]}  Nd7 {[%clk 0:02:50]} 12. Bg5 {[%clk 0:02:45]}  Nf6 {[%clk 0:02:43]} 13. Qh4 {[%clk 0:02:43]}  Be7 {[%clk 0:02:43]} 14. Rad1 {[%clk 0:02:35]}  h6 {[%clk 0:02:43]} 15. Bxf6 {[%clk 0:02:36]}  Bxf6 {[%clk 0:02:43]} 16. Qe4 {[%clk 0:02:36]}  Qb6 {[%clk 0:02:43]} 17. b3 {[%clk 0:02:36]}  Rad8 {[%clk 0:02:43]} 18. Rd2 {[%clk 0:02:36]}  Rfe8 {[%clk 0:02:39]} 19. Rfd1 {[%clk 0:02:36]}  Qa5 {[%clk 0:02:36]} 20. g3 {[%clk 0:02:31]}  Be7 {[%clk 0:02:26]} 21. Qe2 {[%clk 0:02:29]}  Bb4 {[%clk 0:02:25]} 22. Rd3 {[%clk 0:02:28]}  c5 {[%clk 0:02:20]} 23. dxc5 {[%clk 0:02:21]}  Bxc5 {[%clk 0:02:21]} 24. Kg2 {[%clk 0:02:05]}  Bb6 {[%clk 0:02:08]} 25. Rd7 {[%clk 0:01:42]}  Rxd7 {[%clk 0:02:01]} 26. Rxd7 {[%clk 0:01:43]}  e5 {[%clk 0:02:02]} 27. Qe4 {[%clk 0:01:24]}  Qxa2 {[%clk 0:02:01]} 28. Rd2 {[%clk 0:01:17]}  Qxb3 {[%clk 0:01:59]} 29. Qxb7 {[%clk 0:01:04]}  Qxc4 {[%clk 0:01:50]} 30. Nxe5 {[%clk 0:00:53]}  Qe6 {[%clk 0:00:59]} 31. Nf3 {[%clk 0:00:48]}  Qe4 {[%clk 0:00:55]} 32. Qxe4 {[%clk 0:00:35]}  Rxe4 {[%clk 0:00:56]} 33. Rb2 {[%clk 0:00:32]}  g5 {[%clk 0:00:51]} 34. h3 {[%clk 0:00:32]}  Kg7 {[%clk 0:00:50]} 35. Ng1 {[%clk 0:00:30]}  f5 {[%clk 0:00:48]} 36. Ne2 {[%clk 0:00:30]}  Rc4 {[%clk 0:00:47]} 37. Rd2 {[%clk 0:00:17]}  h5 {[%clk 0:00:34]} 38. h4 {[%clk 0:00:12]}  gxh4 {[%clk 0:00:33]} 39. Nf4 {[%clk 0:00:12]}  hxg3 {[%clk 0:00:29]} 40. Nxh5+ {[%clk 0:00:12]}  Kg6 {[%clk 0:00:28]} 41. Nxg3 {[%clk 0:00:12]}  f4 {[%clk 0:00:29]} 42. Ne2 {[%clk 0:00:12]}  Kf5 {[%clk 0:00:26]} 43. Kf3 {[%clk 0:00:12]}  Bc7 {[%clk 0:00:18]} 44. Rd5+ {[%clk 0:00:08]}  Be5 {[%clk 0:00:18]} 45. Ra5 {[%clk 0:00:05]}  Rb4 {[%clk 0:00:15]} 46. Ra3 {[%clk 0:00:03]}  a5 {[%clk 0:00:14]} 47. Nc1 {[%clk 0:00:03]}  a4 {[%clk 0:00:13]} 48. Nd3 {[%clk 0:00:02]}  Rb3 {[%clk 0:00:14]} 49. Rxb3 {[%clk 0:00:01]}  axb3 {[%clk 0:00:15]} 50. Ke2 {[%clk 0:00:01]}  b2 {[%clk 0:00:14]} 51. Nxb2 {[%clk 0:00:02]}  Bxb2 {[%clk 0:00:15]} 52. Kf3 {[%clk 0:00:02]}  Be5 {[%clk 0:00:14]} 53. Kg2 {[%clk 0:00:03]}  Ke4 {[%clk 0:00:15]} 54. f3+ {[%clk 0:00:04]}  Ke3 {[%clk 0:00:15]} 55. Kf1 {[%clk 0:00:05]}  Kxf3 {[%clk 0:00:16]} 56. Kg1 {[%clk 0:00:06]}  Ke2 {[%clk 0:00:16]} 0-1


[Site "https://www.chess.com"]

[Event "Titled Tuesday Blitz May 2 Late 2023"]
[White "Skvortsov, Andrei"]
[Black "Haszon, David"]
[WhiteFideId "24108600"]
[BlackFideId "733610"]
[WhiteElo "2259"]
[BlackElo "2210"]
[Result "0-1"]
[Round "05"]
[TimeControl "180+2"]
[Date "2023.05.02"]
[WhiteClock "0:00:06"]
[BlackClock "0:00:09"]

1. e4 {[%clk 0:03:00]}  c5 {[%clk 0:02:59]} 2. d4 {[%clk 0:03:01]}  cxd4 {[%clk 0:03:00]} 3. Qxd4 {[%clk 0:03:01]}  Nc6 {[%clk 0:02:56]} 4. Qd3 {[%clk 0:03:01]}  e6 {[%clk 0:02:49]} 5. Nc3 {[%clk 0:03:01]}  a6 {[%clk 0:02:48]} 6. Nf3 {[%clk 0:02:44]}  Qc7 {[%clk 0:02:47]} 7. Be2 {[%clk 0:02:29]}  Nf6 {[%clk 0:02:42]} 8. O-O {[%clk 0:02:27]}  Be7 {[%clk 0:02:41]} 9. a3 {[%clk 0:02:26]}  O-O {[%clk 0:02:35]} 10. Rd1 {[%clk 0:02:20]}  Rd8 {[%clk 0:02:31]} 11. h3 {[%clk 0:02:05]}  b5 {[%clk 0:02:24]} 12. Qe3 {[%clk 0:02:03]}  d6 {[%clk 0:02:08]} 13. Qf4 {[%clk 0:01:57]}  Bb7 {[%clk 0:02:04]} 14. Be3 {[%clk 0:01:52]}  Ne5 {[%clk 0:02:01]} 15. Nxe5 {[%clk 0:01:41]}  dxe5 {[%clk 0:02:02]} 16. Qf3 {[%clk 0:01:35]}  Rxd1+ {[%clk 0:01:56]} 17. Rxd1 {[%clk 0:01:33]}  Qc6 {[%clk 0:01:39]} 18. Bd3 {[%clk 0:01:20]}  Bxa3 {[%clk 0:01:28]} 19. Nxb5 {[%clk 0:01:12]}  axb5 {[%clk 0:01:22]} 20. bxa3 {[%clk 0:01:11]}  Nxe4 {[%clk 0:01:16]} 21. Rb1 {[%clk 0:00:49]}  Ra5 {[%clk 0:00:43]} 22. Rb3 {[%clk 0:00:33]}  g6 {[%clk 0:00:30]} 23. Bxe4 {[%clk 0:00:19]}  Qxe4 {[%clk 0:00:29]} 24. Qxe4 {[%clk 0:00:20]}  Bxe4 {[%clk 0:00:29]} 25. Bd2 {[%clk 0:00:20]}  Ra4 {[%clk 0:00:23]} 26. Rxb5 {[%clk 0:00:17]}  Rxa3 {[%clk 0:00:22]} 27. c4 {[%clk 0:00:16]}  Kg7 {[%clk 0:00:18]} 28. Rxe5 {[%clk 0:00:15]}  Bf5 {[%clk 0:00:15]} 29. Rb5 {[%clk 0:00:08]}  Ra2 {[%clk 0:00:15]} 30. Be3 {[%clk 0:00:08]}  Rc2 {[%clk 0:00:15]} 31. c5 {[%clk 0:00:08]}  Bd3 {[%clk 0:00:14]} 32. Rb3 {[%clk 0:00:07]}  Be4 {[%clk 0:00:15]} 33. Rb4 {[%clk 0:00:07]}  f5 {[%clk 0:00:15]} 34. Kh2 {[%clk 0:00:03]}  h6 {[%clk 0:00:14]} 35. Kg3 {[%clk 0:00:03]}  g5 {[%clk 0:00:14]} 36. Kh2 {[%clk 0:00:02]}  Bd5 {[%clk 0:00:13]} 37. Bd4+ {[%clk 0:00:03]}  Kg6 {[%clk 0:00:13]} 38. Rb2 {[%clk 0:00:04]}  Rc4 {[%clk 0:00:13]} 39. Rd2 {[%clk 0:00:04]}  f4 {[%clk 0:00:13]} 40. f3 {[%clk 0:00:04]}  Kf5 {[%clk 0:00:13]} 41. Bf2 {[%clk 0:00:05]}  h5 {[%clk 0:00:12]} 42. h4 {[%clk 0:00:03]}  g4 {[%clk 0:00:12]} 43. fxg4+ {[%clk 0:00:04]}  hxg4 {[%clk 0:00:13]} 44. Kg1 {[%clk 0:00:03]}  g3 {[%clk 0:00:13]} 45. Be1 {[%clk 0:00:04]}  Rc1 {[%clk 0:00:13]} 46. Kf1 {[%clk 0:00:04]}  Rxc5 {[%clk 0:00:13]} 47. Ke2 {[%clk 0:00:04]}  Bxg2 {[%clk 0:00:12]} 48. Kd3 {[%clk 0:00:05]}  Be4+ {[%clk 0:00:12]} 49. Ke2 {[%clk 0:00:04]}  f3+ {[%clk 0:00:11]} 50. Ke3 {[%clk 0:00:04]}  g2 {[%clk 0:00:11]} 51. Bf2 {[%clk 0:00:05]}  Rc3+ {[%clk 0:00:10]} 52. Kd4 {[%clk 0:00:06]}  Rc8 {[%clk 0:00:09]} 53. Rb2 {[%clk 0:00:05]}  Rd8+ {[%clk 0:00:09]} 54. Kc5 {[%clk 0:00:04]}  Rg8 {[%clk 0:00:09]} 55. Bg1 {[%clk 0:00:04]}  e5 {[%clk 0:00:08]} 56. h5 {[%clk 0:00:04]}  Ba8 {[%clk 0:00:08]} 57. h6 {[%clk 0:00:04]}  e4 {[%clk 0:00:08]} 58. Kd6 {[%clk 0:00:04]}  Rg6+ {[%clk 0:00:08]} 59. Kc7 {[%clk 0:00:05]}  Rxh6 {[%clk 0:00:09]} 60. Rb5+ {[%clk 0:00:05]}  Kf4 {[%clk 0:00:08]} 61. Rb3 {[%clk 0:00:05]}  Rh7+ {[%clk 0:00:08]} 62. Kb8 {[%clk 0:00:05]}  Bd5 {[%clk 0:00:08]} 63. Rb5 {[%clk 0:00:05]}  Ke5 {[%clk 0:00:07]} 64. Rb1 {[%clk 0:00:05]}  Rb7+ {[%clk 0:00:06]} 65. Rxb7 {[%clk 0:00:05]}  Bxb7 {[%clk 0:00:07]} 66. Kxb7 {[%clk 0:00:05]}  Kf4 {[%clk 0:00:07]} 67. Kc6 {[%clk 0:00:06]}  e3 {[%clk 0:00:08]} 68. Kd5 {[%clk 0:00:06]}  f2 {[%clk 0:00:09]} 0-1


[Site "https://www.chess.com"]

[Event "Titled Tuesday Blitz May 2 Late 2023"]
[White "Korchmar, Vasiliy"]
[Black "Berg, Olaf"]
[WhiteFideId "24131750"]
[BlackFideId "7200420"]
[WhiteElo "2370"]
[BlackElo "2269"]
[Result "0-1"]
[Round "05"]
[TimeControl "180+2"]
[Date "2023.05.02"]
[WhiteClock "0:00:02"]
[BlackClock "0:00:05"]

1. e4 {[%clk 0:03:00]}  d5 {[%clk 0:03:00]} 2. exd5 {[%clk 0:03:00]}  Qxd5 {[%clk 0:03:01]} 3. Nc3 {[%clk 0:03:01]}  Qd6 {[%clk 0:03:00]} 4. d4 {[%clk 0:03:01]}  Nf6 {[%clk 0:03:00]} 5. Nf3 {[%clk 0:03:00]}  c6 {[%clk 0:03:01]} 6. Ne5 {[%clk 0:02:49]}  Nbd7 {[%clk 0:02:58]} 7. Bf4 {[%clk 0:02:47]}  Nxe5 {[%clk 0:02:53]} 8. Bxe5 {[%clk 0:02:47]}  Qb4 {[%clk 0:02:50]} 9. Bd3 {[%clk 0:02:36]}  Qxb2 {[%clk 0:02:43]} 10. Ne2 {[%clk 0:01:52]}  e6 {[%clk 0:02:35]} 11. O-O {[%clk 0:01:35]}  Be7 {[%clk 0:02:35]} 12. Qd2 {[%clk 0:01:13]}  h6 {[%clk 0:02:00]} 13. Rfb1 {[%clk 0:01:07]}  Qa3 {[%clk 0:02:00]} 14. Rb3 {[%clk 0:01:07]}  Qa4 {[%clk 0:01:52]} 15. c4 {[%clk 0:00:56]}  O-O {[%clk 0:01:43]} 16. Rc1 {[%clk 0:00:39]}  Rd8 {[%clk 0:01:32]} 17. Bc2 {[%clk 0:00:38]}  Qa6 {[%clk 0:01:25]} 18. Rg3 {[%clk 0:00:37]}  Kf8 {[%clk 0:01:09]} 19. Bd3 {[%clk 0:00:19]}  b6 {[%clk 0:01:00]} 20. Nf4 {[%clk 0:00:18]}  Qa5 {[%clk 0:00:56]} 21. Qe2 {[%clk 0:00:17]}  Qa3 {[%clk 0:00:52]} 22. Re1 {[%clk 0:00:12]}  Qb4 {[%clk 0:00:43]} 23. h3 {[%clk 0:00:11]}  Ba6 {[%clk 0:00:43]} 24. Rb1 {[%clk 0:00:11]}  Qa4 {[%clk 0:00:38]} 25. Nh5 {[%clk 0:00:11]}  Nxh5 {[%clk 0:00:06]} 26. Qxh5 {[%clk 0:00:12]}  g6 {[%clk 0:00:03]} 27. Bxg6 {[%clk 0:00:09]}  Ke8 {[%clk 0:00:04]} 28. Bxf7+ {[%clk 0:00:09]}  Kd7 {[%clk 0:00:04]} 29. Qg4 {[%clk 0:00:10]}  Qxc4 {[%clk 0:00:03]} 30. Re1 {[%clk 0:00:04]}  Rf8 {[%clk 0:00:01]} 31. Qg6 {[%clk 0:00:04]}  Kc8 {[%clk 0:00:01]} 32. Bxe6+ {[%clk 0:00:03]}  Kb7 {[%clk 0:00:02]} 33. Bxc4 {[%clk 0:00:02]}  Bxc4 {[%clk 0:00:03]} 34. Qg7 {[%clk 0:00:03]}  Rae8 {[%clk 0:00:03]} 35. Qxh6 {[%clk 0:00:03]}  Rf7 {[%clk 0:00:03]} 36. Qd2 {[%clk 0:00:03]}  Bd5 {[%clk 0:00:04]} 37. Qe3 {[%clk 0:00:03]}  Ref8 {[%clk 0:00:04]} 38. Qd2 {[%clk 0:00:03]}  Bh4 {[%clk 0:00:04]} 39. Ree3 {[%clk 0:00:02]}  Bxg3 {[%clk 0:00:03]} 40. Rxg3 {[%clk 0:00:03]}  b5 {[%clk 0:00:02]} 41. Qe3 {[%clk 0:00:03]}  b4 {[%clk 0:00:02]} 42. h4 {[%clk 0:00:04]}  a5 {[%clk 0:00:02]} 43. a3 {[%clk 0:00:04]}  b3 {[%clk 0:00:02]} 44. Qc3 {[%clk 0:00:04]}  Kb6 {[%clk 0:00:02]} 45. Qc5+ {[%clk 0:00:04]}  Ka6 {[%clk 0:00:03]} 46. Qc3 {[%clk 0:00:04]}  a4 {[%clk 0:00:03]} 47. Qb2 {[%clk 0:00:04]}  Rxf2 {[%clk 0:00:03]} 48. Qxf2 {[%clk 0:00:02]}  Rxf2 {[%clk 0:00:04]} 49. Kxf2 {[%clk 0:00:02]}  b2 {[%clk 0:00:05]} 0-1


[Site "https://www.chess.com"]

[Event "Titled Tuesday Blitz May 2 Late 2023"]
[White "Leiva, Gianmarco"]
[Black "Dzida, Kamil"]
[WhiteFideId "3804399"]
[BlackFideId "21828652"]
[WhiteElo "2345"]
[BlackElo "2139"]
[Result "1-0"]
[Round "05"]
[TimeControl "180+2"]
[Date "2023.05.02"]
[WhiteClock "0:00:41"]
[BlackClock "0:00:04"]

1. e4 {[%clk 0:02:43]}  e5 {[%clk 0:02:59]} 2. Nf3 {[%clk 0:02:43]}  Nc6 {[%clk 0:02:59]} 3. Bc4 {[%clk 0:02:43]}  Nf6 {[%clk 0:02:59]} 4. d3 {[%clk 0:02:43]}  Bc5 {[%clk 0:02:59]} 5. O-O {[%clk 0:02:43]}  d6 {[%clk 0:02:58]} 6. c3 {[%clk 0:02:44]}  a5 {[%clk 0:02:58]} 7. Re1 {[%clk 0:02:43]}  h6 {[%clk 0:02:53]} 8. Bb3 {[%clk 0:02:38]}  O-O {[%clk 0:02:53]} 9. h3 {[%clk 0:02:37]}  Ba7 {[%clk 0:02:47]} 10. d4 {[%clk 0:02:33]}  Re8 {[%clk 0:02:28]} 11. Bc2 {[%clk 0:02:33]}  exd4 {[%clk 0:01:52]} 12. cxd4 {[%clk 0:02:32]}  Nb4 {[%clk 0:01:53]} 13. Nc3 {[%clk 0:02:01]}  Nxc2 {[%clk 0:01:52]} 14. Qxc2 {[%clk 0:02:02]}  c6 {[%clk 0:01:23]} 15. Bf4 {[%clk 0:01:47]}  Be6 {[%clk 0:01:20]} 16. Rad1 {[%clk 0:01:47]}  d5 {[%clk 0:01:12]} 17. e5 {[%clk 0:01:44]}  Nd7 {[%clk 0:01:12]} 18. Ne2 {[%clk 0:01:31]}  Rc8 {[%clk 0:01:10]} 19. Ng3 {[%clk 0:01:31]}  c5 {[%clk 0:01:07]} 20. Qd2 {[%clk 0:01:30]}  Kh7 {[%clk 0:00:49]} 21. Qd3+ {[%clk 0:01:07]}  Kg8 {[%clk 0:00:48]} 22. Nf5 {[%clk 0:01:06]}  Bxf5 {[%clk 0:00:39]} 23. Qxf5 {[%clk 0:01:06]}  Qe7 {[%clk 0:00:31]} 24. dxc5 {[%clk 0:01:03]}  Qe6 {[%clk 0:00:28]} 25. Nd4 {[%clk 0:00:59]}  Qxf5 {[%clk 0:00:24]} 26. Nxf5 {[%clk 0:01:00]}  Bxc5 {[%clk 0:00:23]} 27. Rxd5 {[%clk 0:01:00]}  Nb6 {[%clk 0:00:20]} 28. Rdd1 {[%clk 0:00:55]}  Nc4 {[%clk 0:00:20]} 29. Re2 {[%clk 0:00:52]}  Red8 {[%clk 0:00:19]} 30. Rxd8+ {[%clk 0:00:50]}  Rxd8 {[%clk 0:00:20]} 31. Rc2 {[%clk 0:00:50]}  Rd1+ {[%clk 0:00:19]} 32. Kh2 {[%clk 0:00:50]}  b5 {[%clk 0:00:16]} 33. b3 {[%clk 0:00:50]}  g6 {[%clk 0:00:17]} 34. Nxh6+ {[%clk 0:00:50]}  Kh7 {[%clk 0:00:17]} 35. Ng4 {[%clk 0:00:50]}  Rd4 {[%clk 0:00:09]} 36. g3 {[%clk 0:00:42]}  f5 {[%clk 0:00:05]} 37. exf6 {[%clk 0:00:41]}  Rxf4 {[%clk 0:00:04]} 38. gxf4 {[%clk 0:00:41]} 1-0


[Site "https://www.chess.com"]

[Event "Titled Tuesday Blitz May 2 Late 2023"]
[White "Batsiashvili, Nino"]
[Black "Manukyan, Sargis A."]
[WhiteFideId "13602993"]
[BlackFideId "13303970"]
[WhiteElo "2231"]
[BlackElo "2187"]
[Result "0-1"]
[Round "05"]
[TimeControl "180+2"]
[Date "2023.05.02"]
[WhiteClock "0:00:48"]
[BlackClock "0:01:25"]

1. d4 {[%clk 0:02:57]}  d5 {[%clk 0:02:59]} 2. Nf3 {[%clk 0:02:56]}  Nf6 {[%clk 0:03:00]} 3. Bf4 {[%clk 0:02:56]}  Bg4 {[%clk 0:03:00]} 4. e3 {[%clk 0:02:55]}  e6 {[%clk 0:03:00]} 5. c4 {[%clk 0:02:55]}  Bd6 {[%clk 0:02:52]} 6. Bxd6 {[%clk 0:02:49]}  Qxd6 {[%clk 0:02:43]} 7. Nc3 {[%clk 0:02:50]}  O-O {[%clk 0:02:42]} 8. c5 {[%clk 0:02:43]}  Qd8 {[%clk 0:02:41]} 9. Be2 {[%clk 0:02:42]}  Nbd7 {[%clk 0:02:38]} 10. O-O {[%clk 0:02:40]}  c6 {[%clk 0:02:39]} 11. b4 {[%clk 0:02:40]}  a6 {[%clk 0:02:39]} 12. a4 {[%clk 0:02:37]}  Re8 {[%clk 0:02:37]} 13. Ne5 {[%clk 0:02:33]}  Bxe2 {[%clk 0:02:35]} 14. Nxe2 {[%clk 0:02:34]}  Nxe5 {[%clk 0:02:36]} 15. dxe5 {[%clk 0:02:34]}  Nd7 {[%clk 0:02:32]} 16. f4 {[%clk 0:02:33]}  a5 {[%clk 0:02:33]} 17. Qb3 {[%clk 0:02:27]}  axb4 {[%clk 0:02:33]} 18. Qxb4 {[%clk 0:02:27]}  Qa5 {[%clk 0:02:19]} 19. Qxb7 {[%clk 0:02:22]}  Nxc5 {[%clk 0:02:20]} 20. Qxc6 {[%clk 0:02:21]}  Rec8 {[%clk 0:02:13]} 21. Qb5 {[%clk 0:02:21]}  Qd2 {[%clk 0:02:13]} 22. Ng3 {[%clk 0:01:58]}  Qxe3+ {[%clk 0:02:10]} 23. Kh1 {[%clk 0:01:58]}  Nd3 {[%clk 0:02:07]} 24. f5 {[%clk 0:01:36]}  Nf2+ {[%clk 0:01:55]} 25. Rxf2 {[%clk 0:01:35]}  Qxf2 {[%clk 0:01:56]} 26. fxe6 {[%clk 0:01:27]}  fxe6 {[%clk 0:01:51]} 27. Rf1 {[%clk 0:01:15]}  Qa7 {[%clk 0:01:40]} 28. a5 {[%clk 0:01:11]}  Rf8 {[%clk 0:01:34]} 29. h3 {[%clk 0:00:54]}  Rxf1+ {[%clk 0:01:31]} 30. Nxf1 {[%clk 0:00:55]}  Qxa5 {[%clk 0:01:31]} 31. Qd7 {[%clk 0:00:54]}  Qa6 {[%clk 0:01:30]} 32. Ne3 {[%clk 0:00:51]}  Qa1+ {[%clk 0:01:25]} 33. Kh2 {[%clk 0:00:48]}  Qxe5+ {[%clk 0:01:25]} 0-1


[Site "https://www.chess.com"]

[Event "Titled Tuesday Blitz May 2 Late 2023"]
[White "Tatarinov, Dmitry"]
[Black "Wieczorek, Zbigniew"]
[WhiteFideId "24160067"]
[BlackFideId "1102001"]
[WhiteElo "2326"]
[BlackElo "2150"]
[Result "1-0"]
[Round "05"]
[TimeControl "180+2"]
[Date "2023.05.02"]
[WhiteClock "0:01:49"]
[BlackClock "0:00:13"]

1. Nf3 {[%clk 0:02:31]}  d5 {[%clk 0:02:52]} 2. c4 {[%clk 0:02:32]}  e6 {[%clk 0:02:48]} 3. g3 {[%clk 0:02:31]}  Nf6 {[%clk 0:02:48]} 4. Bg2 {[%clk 0:02:31]}  Be7 {[%clk 0:02:48]} 5. O-O {[%clk 0:02:31]}  O-O {[%clk 0:02:47]} 6. d4 {[%clk 0:02:31]}  Ne4 {[%clk 0:02:41]} 7. Nbd2 {[%clk 0:02:26]}  f5 {[%clk 0:02:38]} 8. Ne5 {[%clk 0:02:22]}  c6 {[%clk 0:02:35]} 9. Ndf3 {[%clk 0:02:21]}  Nd7 {[%clk 0:02:31]} 10. b3 {[%clk 0:02:18]}  Nxe5 {[%clk 0:02:05]} 11. Nxe5 {[%clk 0:02:17]}  Bd7 {[%clk 0:02:06]} 12. Qc2 {[%clk 0:02:13]}  Be8 {[%clk 0:02:04]} 13. a4 {[%clk 0:02:11]}  a5 {[%clk 0:01:58]} 14. Ba3 {[%clk 0:02:09]}  Bb4 {[%clk 0:01:53]} 15. Bxb4 {[%clk 0:02:08]}  axb4 {[%clk 0:01:53]} 16. c5 {[%clk 0:02:05]}  Nf6 {[%clk 0:01:41]} 17. Qd2 {[%clk 0:02:02]}  Qa5 {[%clk 0:01:29]} 18. Nd3 {[%clk 0:02:01]}  b6 {[%clk 0:01:16]} 19. cxb6 {[%clk 0:01:57]}  Rb8 {[%clk 0:01:03]} 20. Qxb4 {[%clk 0:01:52]}  Qxb4 {[%clk 0:01:01]} 21. Nxb4 {[%clk 0:01:53]}  Rxb6 {[%clk 0:01:01]} 22. Nd3 {[%clk 0:01:53]}  Nd7 {[%clk 0:00:27]} 23. b4 {[%clk 0:01:50]}  Kf7 {[%clk 0:00:21]} 24. a5 {[%clk 0:01:50]}  Rb5 {[%clk 0:00:16]} 25. Rfc1 {[%clk 0:01:50]}  Nb8 {[%clk 0:00:13]} 26. a6 {[%clk 0:01:49]} 1-0


[Site "https://www.chess.com"]

[Event "Titled Tuesday Blitz May 2 Late 2023"]
[White "Sokolovsky, Yahli"]
[Black "Koc, Przemyslaw"]
[WhiteFideId "2820242"]
[BlackFideId "1109081"]
[WhiteElo "2316"]
[BlackElo "2161"]
[Result "1/2-1/2"]
[Round "05"]
[TimeControl "180+2"]
[Date "2023.05.02"]
[WhiteClock "0:00:08"]
[BlackClock "0:00:10"]

1. b3 {[%clk 0:03:00]}  f5 {[%clk 0:02:56]} 2. Bb2 {[%clk 0:03:01]}  Nf6 {[%clk 0:02:57]} 3. e3 {[%clk 0:03:01]}  g6 {[%clk 0:02:57]} 4. Nf3 {[%clk 0:02:54]}  Bg7 {[%clk 0:02:57]} 5. d4 {[%clk 0:02:55]}  O-O {[%clk 0:02:56]} 6. c4 {[%clk 0:02:55]}  d6 {[%clk 0:02:56]} 7. Nc3 {[%clk 0:02:52]}  Nbd7 {[%clk 0:02:51]} 8. d5 {[%clk 0:02:52]}  a5 {[%clk 0:02:49]} 9. Na4 {[%clk 0:02:33]}  b6 {[%clk 0:02:45]} 10. Nd4 {[%clk 0:02:27]}  Nc5 {[%clk 0:02:45]} 11. Nxc5 {[%clk 0:02:17]}  bxc5 {[%clk 0:02:46]} 12. Nf3 {[%clk 0:02:12]}  c6 {[%clk 0:02:37]} 13. dxc6 {[%clk 0:02:08]}  Qc7 {[%clk 0:02:36]} 14. Be2 {[%clk 0:02:01]}  Qxc6 {[%clk 0:02:36]} 15. Ng5 {[%clk 0:02:01]}  Ne4 {[%clk 0:02:04]} 16. Bxg7 {[%clk 0:01:59]}  Kxg7 {[%clk 0:02:05]} 17. Nxe4 {[%clk 0:01:17]}  fxe4 {[%clk 0:02:06]} 18. Qd2 {[%clk 0:01:18]}  Bb7 {[%clk 0:01:58]} 19. O-O {[%clk 0:01:17]}  Rf6 {[%clk 0:01:56]} 20. f4 {[%clk 0:00:56]}  exf3 {[%clk 0:01:53]} 21. Bxf3 {[%clk 0:00:57]}  Qc7 {[%clk 0:01:53]} 22. Bxb7 {[%clk 0:00:57]}  Qxb7 {[%clk 0:01:54]} 23. Rxf6 {[%clk 0:00:56]}  Kxf6 {[%clk 0:01:51]} 24. Rf1+ {[%clk 0:00:54]}  Kg7 {[%clk 0:01:51]} 25. Qf2 {[%clk 0:00:55]}  Qe4 {[%clk 0:01:40]} 26. h4 {[%clk 0:00:47]}  Qe6 {[%clk 0:01:35]} 27. Qf3 {[%clk 0:00:34]}  Rd8 {[%clk 0:01:29]} 28. e4 {[%clk 0:00:30]}  Qf6 {[%clk 0:01:21]} 29. Qg4 {[%clk 0:00:24]}  Qd4+ {[%clk 0:01:16]} 30. Kh1 {[%clk 0:00:24]}  Rf8 {[%clk 0:01:15]} 31. Rxf8 {[%clk 0:00:16]}  Kxf8 {[%clk 0:01:16]} 32. Kh2 {[%clk 0:00:10]}  Kf7 {[%clk 0:01:13]} 33. Qf4+ {[%clk 0:00:10]}  Qf6 {[%clk 0:01:10]} 34. Kg3 {[%clk 0:00:08]}  Ke6 {[%clk 0:00:58]} 35. Qxf6+ {[%clk 0:00:08]}  exf6 {[%clk 0:00:50]} 36. Kf4 {[%clk 0:00:06]}  h5 {[%clk 0:00:51]} 37. g3 {[%clk 0:00:05]}  Kf7 {[%clk 0:00:42]} 38. Kf3 {[%clk 0:00:05]}  g5 {[%clk 0:00:41]} 39. g4 {[%clk 0:00:03]}  hxg4+ {[%clk 0:00:17]} 40. Kxg4 {[%clk 0:00:04]}  gxh4 {[%clk 0:00:18]} 41. Kxh4 {[%clk 0:00:05]}  Ke6 {[%clk 0:00:19]} 42. Kg4 {[%clk 0:00:05]}  Ke5 {[%clk 0:00:19]} 43. Kf3 {[%clk 0:00:06]}  Kd4 {[%clk 0:00:19]} 44. Kf4 {[%clk 0:00:07]}  Kc3 {[%clk 0:00:10]} 45. Kf5 {[%clk 0:00:07]}  Kb2 {[%clk 0:00:10]} 46. Kxf6 {[%clk 0:00:02]}  Kxa2 {[%clk 0:00:11]} 47. Ke6 {[%clk 0:00:03]}  Kxb3 {[%clk 0:00:11]} 48. Kxd6 {[%clk 0:00:04]}  a4 {[%clk 0:00:11]} 49. e5 {[%clk 0:00:05]}  a3 {[%clk 0:00:12]} 50. e6 {[%clk 0:00:06]}  a2 {[%clk 0:00:12]} 51. e7 {[%clk 0:00:07]}  a1=Q {[%clk 0:00:13]} 52. e8=Q {[%clk 0:00:08]}  Qd4+ {[%clk 0:00:11]} 53. Kc6 {[%clk 0:00:07]}  Kxc4 {[%clk 0:00:12]} 54. Qe2+ {[%clk 0:00:07]}  Kb3 {[%clk 0:00:11]} 55. Qb5+ {[%clk 0:00:06]}  Qb4 {[%clk 0:00:11]} 56. Qxc5 {[%clk 0:00:07]}  Qxc5+ {[%clk 0:00:10]} 57. Kxc5 {[%clk 0:00:08]} 1/2-1/2


[Site "https://www.chess.com"]